[Event "*** Titled Tuesday Blitz AM"]
[Site "Chess.com"]
[Date "2020.01.07"]
[Round "7"]
[White "lestri"]
[Black "Endgamegenius"]
[Result "1/2-1/2"]
[WhiteElo "2621"]
[BlackElo "2386"]
[TimeControl "180+2"]
[EndTime "10:32:57 PST"]
[Termination "Game drawn by repetition"]

1. c4 {[%clk 0:03:01.9]} 1... Nf6 {[%clk 0:02:57.4]} 2. Nc3 {[%clk 0:03:01.9]}
2... e5 {[%clk 0:02:56.1]} 3. Nf3 {[%clk 0:03:02.3]} 3... Nc6 {[%clk 0:02:57.2]}
4. d4 {[%clk 0:03:03.8]} 4... exd4 {[%clk 0:02:57.3]} 5. Nxd4 {[%clk 0:03:03.6]}
5... Bc5 {[%clk 0:02:57.7]} 6. e3 {[%clk 0:03:02.9]} 6... O-O {[%clk 0:02:58]}
7. Be2 {[%clk 0:03:03.9]} 7... d5 {[%clk 0:02:53.6]} 8. cxd5 {[%clk 0:03:03.4]}
8... Nxd4 {[%clk 0:02:49.3]} 9. exd4 {[%clk 0:03:02.3]} 9... Bb4 {[%clk
0:02:50.4]} 10. Bg5 {[%clk 0:02:55.2]} 10... Qxd5 {[%clk 0:02:40]} 11. Bxf6
{[%clk 0:02:54.9]} 11... gxf6 {[%clk 0:02:41.5]} 12. O-O {[%clk 0:02:55.8]}
12... Qg5 {[%clk 0:02:36.4]} 13. Ne4 {[%clk 0:02:51.4]} 13... Qg6 {[%clk
0:02:35.8]} 14. Ng3 {[%clk 0:02:51.4]} 14... Bd6 {[%clk 0:02:34.6]} 15. Bd3
{[%clk 0:02:51.4]} 15... Qg5 {[%clk 0:02:33.4]} 16. Qf3 {[%clk 0:02:51.2]} 16...
c6 {[%clk 0:02:30.1]} 17. Ne4 {[%clk 0:02:50.1]} 17... Qf4 {[%clk 0:02:30.9]}
18. Nxf6+ {[%clk 0:02:41.5]} 18... Kh8 {[%clk 0:02:31.4]} 19. Qh5 {[%clk
0:02:36.4]} 19... h6 {[%clk 0:02:32]} 20. Ne4 {[%clk 0:02:28.3]} 20... Be7
{[%clk 0:02:22.9]} 21. g3 {[%clk 0:01:53.9]} 21... Bg4 {[%clk 0:02:23.4]} 22.
Qa5 {[%clk 0:01:47.2]} 22... Qf5 {[%clk 0:02:11]} 23. Qc3 {[%clk 0:01:37.4]}
23... Qd5 {[%clk 0:02:02.8]} 24. Rfe1 {[%clk 0:01:28.9]} 24... Rae8 {[%clk
0:02:02.7]} 25. Bc4 {[%clk 0:01:25.7]} 25... Qh5 {[%clk 0:02:02.7]} 26. d5+
{[%clk 0:01:22.6]} 26... f6 {[%clk 0:02:00]} 27. d6 {[%clk 0:01:21.5]} 27... Bd8
{[%clk 0:02:00.7]} 28. Nd2 {[%clk 0:01:21.5]} 28... Rxe1+ {[%clk 0:01:50.9]} 29.
Rxe1 {[%clk 0:00:53.7]} 29... Bb6 {[%clk 0:01:45.9]} 30. Be6 {[%clk 0:00:37.5]}
30... Bxf2+ {[%clk 0:01:28.3]} 31. Kxf2 {[%clk 0:00:35.4]} 31... Qxh2+ {[%clk
0:01:28.4]} 32. Kf1 {[%clk 0:00:32.4]} 32... Qh1+ {[%clk 0:01:28.3]} 33. Kf2
{[%clk 0:00:33]} 33... Qh2+ {[%clk 0:01:29.4]} 34. Kf1 {[%clk 0:00:31.9]} 34...
Qh1+ {[%clk 0:01:24.4]} 35. Kf2 {[%clk 0:00:31.4]} 35... Qh2+ {[%clk 0:01:25]}
1/2-1/2

[Event "*** Titled Tuesday Blitz AM"]
[Site "Chess.com"]
[Date "2020.01.07"]
[Round "7"]
[White "Evgeny81"]
[Black "chigorin28"]
[Result "1-0"]
[WhiteElo "2546"]
[BlackElo "2413"]
[TimeControl "180+2"]
[EndTime "10:33:12 PST"]
[Termination "Evgeny81 won by resignation"]

1. Nf3 {[%clk 0:03:01.9]} 1... Nf6 {[%clk 0:03:00.7]} 2. c4 {[%clk 0:03:03.3]}
2... e6 {[%clk 0:03:01.1]} 3. g3 {[%clk 0:03:04.3]} 3... b6 {[%clk 0:03:01.6]}
4. Bg2 {[%clk 0:03:05.8]} 4... Bb7 {[%clk 0:03:01.8]} 5. O-O {[%clk 0:03:07.4]}
5... Be7 {[%clk 0:02:59.7]} 6. d4 {[%clk 0:03:08.5]} 6... O-O {[%clk 0:03:00.2]}
7. Nc3 {[%clk 0:03:09.1]} 7... d6 {[%clk 0:03:01.6]} 8. Qc2 {[%clk 0:03:09.3]}
8... Nbd7 {[%clk 0:03:02.8]} 9. e4 {[%clk 0:03:10.4]} 9... e5 {[%clk 0:03:04.3]}
10. d5 {[%clk 0:03:11.2]} 10... a5 {[%clk 0:03:03.2]} 11. Ne1 {[%clk 0:03:04.7]}
11... Nc5 {[%clk 0:02:32.1]} 12. b3 {[%clk 0:02:57.6]} 12... Ne8 {[%clk
0:02:22.9]} 13. f4 {[%clk 0:02:54.8]} 13... exf4 {[%clk 0:02:19.7]} 14. gxf4
{[%clk 0:02:55]} 14... Bf6 {[%clk 0:02:02.1]} 15. Bb2 {[%clk 0:02:47.6]} 15...
Bd4+ {[%clk 0:01:58.1]} 16. Kh1 {[%clk 0:02:48]} 16... f5 {[%clk 0:01:59.1]} 17.
Nf3 {[%clk 0:02:41.2]} 17... Bxc3 {[%clk 0:01:54.9]} 18. Bxc3 {[%clk 0:02:39.6]}
18... Nxe4 {[%clk 0:01:51]} 19. Bb2 {[%clk 0:02:40.2]} 19... N8f6 {[%clk
0:01:46.9]} 20. Nd4 {[%clk 0:02:40.3]} 20... Bc8 {[%clk 0:01:38.4]} 21. Rg1
{[%clk 0:02:32.6]} 21... Qe8 {[%clk 0:01:36]} 22. Bf3 {[%clk 0:02:29.9]} 22...
Bd7 {[%clk 0:01:30.8]} 23. Rg2 {[%clk 0:02:29.3]} 23... Rf7 {[%clk 0:01:31.8]}
24. Rag1 {[%clk 0:02:29.3]} 24... Qe7 {[%clk 0:01:30.7]} 25. Bxe4 {[%clk
0:02:17.6]} 25... Qxe4 {[%clk 0:01:18.8]} 26. Qxe4 {[%clk 0:02:17.9]} 26... fxe4
{[%clk 0:01:13.5]} 27. Ne6 {[%clk 0:02:12.5]} 27... g6 {[%clk 0:00:56.5]} 28. f5
{[%clk 0:01:54.2]} 28... Nh5 {[%clk 0:00:26.3]} 29. fxg6 {[%clk 0:01:49.7]}
29... hxg6 {[%clk 0:00:26.4]} 30. Rxg6+ {[%clk 0:01:50.3]} 30... Kh7 {[%clk
0:00:27.8]} 31. Bc1 {[%clk 0:01:40.6]} 31... Rf6 {[%clk 0:00:10.8]} 32. R6g5
{[%clk 0:01:18.5]} 32... Be8 {[%clk 0:00:10.6]} 33. Nxc7 {[%clk 0:01:04.2]}
33... Rc8 {[%clk 0:00:10.8]} 34. Nxe8 {[%clk 0:01:05.3]} 34... Rxe8 {[%clk
0:00:11.6]} 35. Rxh5+ {[%clk 0:01:06.6]} 1-0

[Event "*** Titled Tuesday Blitz AM"]
[Site "Chess.com"]
[Date "2020.01.07"]
[Round "7"]
[White "AquivaRubinstein"]
[Black "SlavenPastar"]
[Result "1-0"]
[WhiteElo "2442"]
[BlackElo "2536"]
[TimeControl "180+2"]
[EndTime "10:33:19 PST"]
[Termination "AquivaRubinstein won by checkmate"]

1. d4 {[%clk 0:03:01.9]} 1... d5 {[%clk 0:03:00.5]} 2. Nc3 {[%clk 0:03:02.9]}
2... Nf6 {[%clk 0:02:56.5]} 3. Bg5 {[%clk 0:03:03.2]} 3... e6 {[%clk 0:02:55.4]}
4. Qd2 {[%clk 0:03:04.2]} 4... Be7 {[%clk 0:02:55.7]} 5. O-O-O {[%clk
0:03:04.8]} 5... h6 {[%clk 0:02:57.3]} 6. Bxf6 {[%clk 0:02:57.4]} 6... Bxf6
{[%clk 0:02:48.2]} 7. e4 {[%clk 0:02:58.7]} 7... dxe4 {[%clk 0:02:45.6]} 8. Nxe4
{[%clk 0:02:58.7]} 8... Be7 {[%clk 0:02:40.4]} 9. Nf3 {[%clk 0:02:55.4]} 9...
Nc6 {[%clk 0:02:38.5]} 10. Bb5 {[%clk 0:02:49.3]} 10... a6 {[%clk 0:01:58.3]}
11. Bxc6+ {[%clk 0:02:27.6]} 11... bxc6 {[%clk 0:02:00.2]} 12. Ne5 {[%clk
0:02:28]} 12... Qd5 {[%clk 0:01:44.7]} 13. Nc3 {[%clk 0:02:28.4]} 13... Qd6
{[%clk 0:01:03.6]} 14. Kb1 {[%clk 0:02:26.9]} 14... c5 {[%clk 0:00:50.2]} 15.
Qf4 {[%clk 0:02:08]} 15... O-O {[%clk 0:00:31.9]} 16. Ne4 {[%clk 0:02:04.8]}
16... Qb6 {[%clk 0:00:30.4]} 17. dxc5 {[%clk 0:01:57.3]} 17... Bxc5 {[%clk
0:00:32.3]} 18. Rd8 {[%clk 0:00:45.9]} 18... f5 {[%clk 0:00:12.6]} 19. Nf6+
{[%clk 0:00:28]} 19... gxf6 {[%clk 0:00:04.3]} 20. Qg3+ {[%clk 0:00:27.3]} 20...
Kh8 {[%clk 0:00:05.7]} 21. Ng6+ {[%clk 0:00:19.7]} 21... Kg7 {[%clk 0:00:05.5]}
22. Nxf8+ {[%clk 0:00:15.8]} 22... Kf7 {[%clk 0:00:06]} 23. Qg6+ {[%clk
0:00:14.6]} 23... Ke7 {[%clk 0:00:06.2]} 24. Qe8# {[%clk 0:00:15.4]} 1-0

[Event "*** Titled Tuesday Blitz AM"]
[Site "Chess.com"]
[Date "2020.01.07"]
[Round "7"]
[White "enriquetejedor"]
[Black "dawtonlms"]
[Result "1-0"]
[WhiteElo "2467"]
[BlackElo "2319"]
[TimeControl "180+2"]
[EndTime "10:33:20 PST"]
[Termination "enriquetejedor won by resignation"]

1. e4 {[%clk 0:02:56.3]} 1... c5 {[%clk 0:02:57.9]} 2. Nc3 {[%clk 0:02:50.4]}
2... a6 {[%clk 0:02:57.9]} 3. f4 {[%clk 0:02:48.7]} 3... b5 {[%clk 0:02:58]} 4.
g3 {[%clk 0:02:45.1]} 4... Bb7 {[%clk 0:02:58.3]} 5. Bg2 {[%clk 0:02:39.7]} 5...
e6 {[%clk 0:02:57.7]} 6. d3 {[%clk 0:02:37.8]} 6... d6 {[%clk 0:02:48.5]} 7. Nf3
{[%clk 0:02:32.3]} 7... Nd7 {[%clk 0:02:49]} 8. O-O {[%clk 0:02:16.4]} 8... Ngf6
{[%clk 0:02:39]} 9. h3 {[%clk 0:02:14.4]} 9... Be7 {[%clk 0:02:34.7]} 10. g4
{[%clk 0:02:15.2]} 10... O-O {[%clk 0:02:35.2]} 11. Ne2 {[%clk 0:02:12.2]} 11...
Ne8 {[%clk 0:02:21.1]} 12. Ng3 {[%clk 0:02:13.3]} 12... Nc7 {[%clk 0:02:21.8]}
13. g5 {[%clk 0:02:10.6]} 13... e5 {[%clk 0:02:16.2]} 14. f5 {[%clk 0:02:09.7]}
14... d5 {[%clk 0:02:12.9]} 15. f6 {[%clk 0:02:06.8]} 15... gxf6 {[%clk
0:02:13.5]} 16. Nf5 {[%clk 0:02:06.9]} 16... fxg5 {[%clk 0:02:09.3]} 17. Nxe7+
{[%clk 0:01:47.4]} 17... Qxe7 {[%clk 0:02:09.9]} 18. Bxg5 {[%clk 0:01:44.1]}
18... f6 {[%clk 0:02:06.8]} 19. Bh6 {[%clk 0:01:45.2]} 19... Rf7 {[%clk
0:02:00.1]} 20. Nh4 {[%clk 0:01:45.4]} 20... Nf8 {[%clk 0:01:44.4]} 21. Qg4+
{[%clk 0:01:37.7]} 21... Kh8 {[%clk 0:01:42.8]} 22. Qh5 {[%clk 0:01:33.4]} 22...
Qe8 {[%clk 0:01:32.7]} 23. Kh2 {[%clk 0:01:26]} 23... dxe4 {[%clk 0:01:25.5]}
24. dxe4 {[%clk 0:01:22.7]} 24... Bc8 {[%clk 0:01:17.9]} 25. Rf2 {[%clk
0:01:09.9]} 25... Nce6 {[%clk 0:01:06.8]} 26. Raf1 {[%clk 0:00:54.8]} 26... Ng7
{[%clk 0:00:58.6]} 27. Bxg7+ {[%clk 0:00:26.5]} 27... Kxg7 {[%clk 0:00:59.4]}
28. Rxf6 {[%clk 0:00:27.2]} 28... Raa7 {[%clk 0:00:56.2]} 29. Qg5+ {[%clk
0:00:14.3]} 29... Ng6 {[%clk 0:00:52.3]} 30. Nxg6 {[%clk 0:00:08.9]} 1-0

[Event "*** Titled Tuesday Blitz AM"]
[Site "Chess.com"]
[Date "2020.01.07"]
[Round "7"]
[White "Anna_ChessMate"]
[Black "MFBerna"]
[Result "0-1"]
[WhiteElo "2576"]
[BlackElo "2474"]
[TimeControl "180+2"]
[EndTime "10:33:31 PST"]
[Termination "MFBerna won by checkmate"]

1. d4 {[%clk 0:02:59.3]} 1... Nf6 {[%clk 0:03:00.8]} 2. c4 {[%clk 0:03:00.3]}
2... e6 {[%clk 0:03:01.9]} 3. Nf3 {[%clk 0:03:01.5]} 3... b6 {[%clk 0:03:01.2]}
4. g3 {[%clk 0:03:02.3]} 4... Ba6 {[%clk 0:03:00.1]} 5. Qc2 {[%clk 0:03:01.8]}
5... Bb4+ {[%clk 0:02:58]} 6. Bd2 {[%clk 0:03:01.9]} 6... Bxd2+ {[%clk
0:02:57.4]} 7. Nbxd2 {[%clk 0:03:00.6]} 7... d5 {[%clk 0:02:57.7]} 8. Bg2 {[%clk
0:02:46.2]} 8... O-O {[%clk 0:02:58.3]} 9. O-O {[%clk 0:02:47.7]} 9... Nbd7
{[%clk 0:02:56.3]} 10. cxd5 {[%clk 0:02:48.5]} 10... exd5 {[%clk 0:02:57.3]} 11.
Rfe1 {[%clk 0:02:49]} 11... c5 {[%clk 0:02:55]} 12. dxc5 {[%clk 0:02:49.1]}
12... bxc5 {[%clk 0:02:54.1]} 13. Rad1 {[%clk 0:02:50.3]} 13... Re8 {[%clk
0:02:48.1]} 14. e4 {[%clk 0:02:51.3]} 14... dxe4 {[%clk 0:02:43.4]} 15. Nxe4
{[%clk 0:02:50.7]} 15... Nxe4 {[%clk 0:02:34.1]} 16. Rxe4 {[%clk 0:02:52.6]}
16... Qc7 {[%clk 0:01:53.8]} 17. Ng5 {[%clk 0:02:51.5]} 17... Nf6 {[%clk
0:01:19.5]} 18. Rh4 {[%clk 0:02:43.2]} 18... h6 {[%clk 0:01:19.8]} 19. Bxa8
{[%clk 0:02:40]} 19... hxg5 {[%clk 0:01:20.6]} 20. Ra4 {[%clk 0:02:41]} 20...
Bb5 {[%clk 0:01:00.8]} 21. Rb4 {[%clk 0:02:41.6]} 21... Be2 {[%clk 0:00:39.2]}
22. Rd2 {[%clk 0:02:29.4]} 22... Qc8 {[%clk 0:00:07.9]} 23. Rb3 {[%clk
0:02:10.4]} 23... c4 {[%clk 0:00:06.1]} 24. Rc3 {[%clk 0:02:04.9]} 24... Bd3
{[%clk 0:00:07.4]} 25. Rdxd3 {[%clk 0:01:57.4]} 25... Re1+ {[%clk 0:00:06.7]}
26. Kg2 {[%clk 0:01:54.9]} 26... Qxa8+ {[%clk 0:00:08]} 27. Rf3 {[%clk
0:01:55.7]} 27... g4 {[%clk 0:00:09.4]} 28. Qd2 {[%clk 0:01:51]} 28... gxf3+
{[%clk 0:00:11.3]} 29. Rxf3 {[%clk 0:01:43.4]} 29... Re5 {[%clk 0:00:12.1]} 30.
Qc2 {[%clk 0:01:36.5]} 30... Qd5 {[%clk 0:00:10.8]} 31. h3 {[%clk 0:01:34.5]}
31... Ne4 {[%clk 0:00:11.7]} 32. Rf4 {[%clk 0:01:27]} 32... Ng5+ {[%clk
0:00:11.7]} 33. f3 {[%clk 0:01:23.9]} 33... Re1 {[%clk 0:00:11.1]} 34. h4 {[%clk
0:01:21]} 34... Ne6 {[%clk 0:00:06]} 35. Rxc4 {[%clk 0:01:21.7]} 35... g6 {[%clk
0:00:04.6]} 36. Rc8+ {[%clk 0:01:20.1]} 36... Kh7 {[%clk 0:00:04.1]} 37. Qc3
{[%clk 0:01:21.4]} 37... Re2+ {[%clk 0:00:03]} 38. Kh3 {[%clk 0:01:20.5]} 38...
Qf5+ {[%clk 0:00:04.4]} 39. g4 {[%clk 0:01:20.6]} 39... Nf4+ {[%clk 0:00:05.8]}
40. Kg3 {[%clk 0:01:22.5]} 40... Rg2# {[%clk 0:00:06.9]} 0-1

[Event "*** Titled Tuesday Blitz AM"]
[Site "Chess.com"]
[Date "2020.01.07"]
[Round "7"]
[White "VeraNebolsina"]
[Black "Iyael"]
[Result "1-0"]
[WhiteElo "2325"]
[BlackElo "2075"]
[TimeControl "180+2"]
[EndTime "10:33:32 PST"]
[Termination "VeraNebolsina won by resignation"]

1. e4 {[%clk 0:03:01.9]} 1... c5 {[%clk 0:02:59.9]} 2. Nc3 {[%clk 0:03:02.2]}
2... Nc6 {[%clk 0:03:00.2]} 3. Bb5 {[%clk 0:03:02.3]} 3... e6 {[%clk 0:03:00.6]}
4. Nf3 {[%clk 0:02:58.6]} 4... Nge7 {[%clk 0:03:00.6]} 5. O-O {[%clk 0:02:46.6]}
5... a6 {[%clk 0:03:00.2]} 6. Bxc6 {[%clk 0:02:47.3]} 6... Nxc6 {[%clk
0:03:00.7]} 7. d4 {[%clk 0:02:47.7]} 7... cxd4 {[%clk 0:03:01.5]} 8. Nxd4 {[%clk
0:02:46.7]} 8... Bc5 {[%clk 0:03:01.2]} 9. Nxc6 {[%clk 0:02:45.2]} 9... bxc6
{[%clk 0:03:01.6]} 10. Qh5 {[%clk 0:02:28.9]} 10... d5 {[%clk 0:02:58.6]} 11.
Bg5 {[%clk 0:02:19]} 11... Be7 {[%clk 0:02:57.4]} 12. Bxe7 {[%clk 0:02:13.7]}
12... Qxe7 {[%clk 0:02:57.9]} 13. exd5 {[%clk 0:02:14.6]} 13... cxd5 {[%clk
0:02:56.3]} 14. Rfe1 {[%clk 0:02:15.4]} 14... Bb7 {[%clk 0:02:49.7]} 15. Rad1
{[%clk 0:02:08.6]} 15... Rd8 {[%clk 0:02:47.1]} 16. Rd3 {[%clk 0:01:53.2]} 16...
Qf6 {[%clk 0:02:37.6]} 17. Nxd5 {[%clk 0:01:32.7]} 17... Bxd5 {[%clk 0:02:29.7]}
18. Rxd5 {[%clk 0:01:32.4]} 18... O-O {[%clk 0:02:25.9]} 19. Rxd8 {[%clk
0:01:19.4]} 19... Rxd8 {[%clk 0:02:26.5]} 20. Qc5 {[%clk 0:01:21.3]} 20... h6
{[%clk 0:02:24.5]} 21. Qb4 {[%clk 0:01:09.4]} 21... Rd4 {[%clk 0:02:04]} 22. Qc3
{[%clk 0:01:00.8]} 22... Qf4 {[%clk 0:01:55.7]} 23. g3 {[%clk 0:00:56.3]} 23...
Qd6 {[%clk 0:01:55.5]} 24. a3 {[%clk 0:00:44]} 24... Rd2 {[%clk 0:01:55.4]} 25.
b4 {[%clk 0:00:42.1]} 25... Qd5 {[%clk 0:01:47.5]} 26. Qc8+ {[%clk 0:00:26.8]}
26... Kh7 {[%clk 0:01:47.3]} 27. Qxa6 {[%clk 0:00:23.3]} 27... Rxc2 {[%clk
0:01:47.4]} 28. Qf1 {[%clk 0:00:11.9]} 28... Ra2 {[%clk 0:01:45.2]} 29. Rd1
{[%clk 0:00:12.9]} 29... Qb7 {[%clk 0:01:31.6]} 30. Qd3+ {[%clk 0:00:11]} 30...
g6 {[%clk 0:01:30.1]} 31. Qb3 {[%clk 0:00:10.3]} 31... Re2 {[%clk 0:01:28.5]}
32. Qd3 {[%clk 0:00:11.3]} 32... Ra2 {[%clk 0:01:28.6]} 33. Qb3 {[%clk
0:00:12.5]} 33... Re2 {[%clk 0:01:29.5]} 34. b5 {[%clk 0:00:14]} 34... Qb6
{[%clk 0:01:22.2]} 35. Qf3 {[%clk 0:00:15]} 35... Rc2 {[%clk 0:01:05.4]} 36.
Qxf7+ {[%clk 0:00:15.5]} 36... Kh8 {[%clk 0:01:06.5]} 37. Rd7 {[%clk 0:00:16.2]}
37... Rc1+ {[%clk 0:01:04.3]} 38. Kg2 {[%clk 0:00:16.9]} 1-0

[Event "*** Titled Tuesday Blitz AM"]
[Site "Chess.com"]
[Date "2020.01.07"]
[Round "7"]
[White "severomorskij"]
[Black "Rikikits"]
[Result "1-0"]
[WhiteElo "2892"]
[BlackElo "2716"]
[TimeControl "180+2"]
[EndTime "10:33:40 PST"]
[Termination "severomorskij won by resignation"]

1. d4 {[%clk 0:03:01.9]} 1... f5 {[%clk 0:03:00.8]} 2. Nc3 {[%clk 0:02:59.4]}
2... Nf6 {[%clk 0:03:00.4]} 3. Bg5 {[%clk 0:02:58.2]} 3... d5 {[%clk 0:03:01.9]}
4. e3 {[%clk 0:02:58.8]} 4... e6 {[%clk 0:03:02.2]} 5. Nf3 {[%clk 0:02:58.9]}
5... Be7 {[%clk 0:03:03.1]} 6. Bd3 {[%clk 0:02:57.9]} 6... O-O {[%clk 0:03:04]}
7. O-O {[%clk 0:02:57.7]} 7... Ne4 {[%clk 0:03:03.8]} 8. Bxe7 {[%clk 0:02:57.4]}
8... Qxe7 {[%clk 0:03:05.7]} 9. Ne2 {[%clk 0:02:58.4]} 9... Nc6 {[%clk
0:03:06.8]} 10. c4 {[%clk 0:02:59.1]} 10... Kh8 {[%clk 0:03:05.1]} 11. Nc3
{[%clk 0:02:51.6]} 11... Bd7 {[%clk 0:02:56.3]} 12. cxd5 {[%clk 0:02:50.7]}
12... Nxc3 {[%clk 0:02:57.5]} 13. bxc3 {[%clk 0:02:52.1]} 13... exd5 {[%clk
0:02:58.1]} 14. Qb3 {[%clk 0:02:51.2]} 14... Qd6 {[%clk 0:02:59]} 15. Qxb7
{[%clk 0:02:32.5]} 15... Rfb8 {[%clk 0:02:57.8]} 16. Qa6 {[%clk 0:02:33.3]}
16... Rb6 {[%clk 0:02:58.5]} 17. Qa4 {[%clk 0:02:34.3]} 17... Nb4 {[%clk
0:02:48.8]} 18. Qd1 {[%clk 0:02:14.4]} 18... Nxd3 {[%clk 0:02:48.9]} 19. Qxd3
{[%clk 0:02:15.8]} 19... Bb5 {[%clk 0:02:50.5]} 20. Qxf5 {[%clk 0:02:16.7]}
20... Rf8 {[%clk 0:02:52]} 21. Qc2 {[%clk 0:01:43.8]} 21... Rxf3 {[%clk
0:02:11.9]} 22. gxf3 {[%clk 0:01:41.3]} 22... Qh6 {[%clk 0:02:11.8]} 23. Qf5
{[%clk 0:01:21.4]} 23... Qg6+ {[%clk 0:01:33.2]} 24. Qxg6 {[%clk 0:01:20.4]}
24... Rxg6+ {[%clk 0:01:35.1]} 25. Kh1 {[%clk 0:01:18.8]} 25... Be2 {[%clk
0:01:36.4]} 26. h4 {[%clk 0:01:15.5]} 26... Bxf3+ {[%clk 0:01:37.5]} 27. Kh2
{[%clk 0:01:16.6]} 27... h5 {[%clk 0:01:26.1]} 28. Rg1 {[%clk 0:01:13.4]} 28...
Rc6 {[%clk 0:01:26.9]} 29. Rg3 {[%clk 0:00:55.4]} 29... Be4 {[%clk 0:01:27.6]}
30. f3 {[%clk 0:00:55.5]} 30... Bf5 {[%clk 0:01:28]} 31. Rc1 {[%clk 0:00:54.3]}
31... Ra6 {[%clk 0:01:28.1]} 32. Rg2 {[%clk 0:00:51.8]} 32... Rb6 {[%clk
0:01:27.2]} 33. c4 {[%clk 0:00:47]} 33... c6 {[%clk 0:01:26]} 34. cxd5 {[%clk
0:00:46.3]} 34... cxd5 {[%clk 0:01:27.9]} 35. Rc5 {[%clk 0:00:46.6]} 35... Rd6
{[%clk 0:01:28]} 36. Rc7 {[%clk 0:00:37.5]} 36... Bg6 {[%clk 0:01:25.5]} 37.
Rxa7 {[%clk 0:00:35.5]} 37... Kh7 {[%clk 0:01:27.1]} 38. a4 {[%clk 0:00:29.3]}
38... Re6 {[%clk 0:01:28]} 39. Re2 {[%clk 0:00:25.7]} 39... Bd3 {[%clk
0:01:29.1]} 40. Re1 {[%clk 0:00:26.3]} 40... Rf6 {[%clk 0:01:28]} 41. Kg3 {[%clk
0:00:25.3]} 41... Rg6+ {[%clk 0:01:29.5]} 42. Kf2 {[%clk 0:00:26.4]} 42... Rf6
{[%clk 0:01:29.6]} 43. Rg1 {[%clk 0:00:23.9]} 43... Bg6 {[%clk 0:01:26.9]} 44.
a5 {[%clk 0:00:21.3]} 44... Kh6 {[%clk 0:01:28.3]} 45. Rb7 {[%clk 0:00:19.4]}
45... Be4 {[%clk 0:01:29]} 46. Rb6 {[%clk 0:00:19.6]} 1-0

[Event "*** Titled Tuesday Blitz AM"]
[Site "Chess.com"]
[Date "2020.01.07"]
[Round "7"]
[White "Atanejhad"]
[Black "Mikasinski"]
[Result "1-0"]
[WhiteElo "2416"]
[BlackElo "2305"]
[TimeControl "180+2"]
[EndTime "10:33:45 PST"]
[Termination "Atanejhad won on time"]

1. e4 {[%clk 0:03:01.9]} 1... e6 {[%clk 0:03:01]} 2. d4 {[%clk 0:03:02.3]} 2...
d5 {[%clk 0:03:01.5]} 3. Nd2 {[%clk 0:03:03.8]} 3... Nf6 {[%clk 0:03:02.1]} 4.
e5 {[%clk 0:03:04.9]} 4... Nfd7 {[%clk 0:03:02.5]} 5. f4 {[%clk 0:03:06.5]} 5...
c5 {[%clk 0:03:02.6]} 6. c3 {[%clk 0:03:08.4]} 6... Nc6 {[%clk 0:03:03.6]} 7.
Ngf3 {[%clk 0:03:10]} 7... Be7 {[%clk 0:02:56]} 8. Be2 {[%clk 0:02:37.3]} 8...
O-O {[%clk 0:02:51.6]} 9. O-O {[%clk 0:02:37.4]} 9... f6 {[%clk 0:02:49.2]} 10.
Kh1 {[%clk 0:02:32.2]} 10... a5 {[%clk 0:01:37.7]} 11. a4 {[%clk 0:02:27.8]}
11... cxd4 {[%clk 0:01:31]} 12. cxd4 {[%clk 0:02:29.7]} 12... Nb4 {[%clk
0:01:29.8]} 13. Nb3 {[%clk 0:02:26.7]} 13... b6 {[%clk 0:01:25.9]} 14. Bd2
{[%clk 0:01:47.2]} 14... Ba6 {[%clk 0:01:19.5]} 15. Bc3 {[%clk 0:01:43.1]} 15...
f5 {[%clk 0:01:19.2]} 16. Rg1 {[%clk 0:01:26.8]} 16... Bxe2 {[%clk 0:01:11.9]}
17. Qxe2 {[%clk 0:01:28.7]} 17... Qc7 {[%clk 0:01:12.4]} 18. Nbd2 {[%clk
0:01:22.6]} 18... Qb7 {[%clk 0:00:24.3]} 19. g4 {[%clk 0:01:19.4]} 19... Qa6
{[%clk 0:00:23.5]} 20. Qg2 {[%clk 0:00:50.8]} 20... g6 {[%clk 0:00:16.7]} 21.
gxf5 {[%clk 0:00:51.1]} 21... Rxf5 {[%clk 0:00:17.1]} 22. Nf1 {[%clk 0:00:37]}
22... Rxf4 {[%clk 0:00:13.7]} 23. Bd2 {[%clk 0:00:32.4]} 23... Rf5 {[%clk
0:00:10.4]} 24. Ne3 {[%clk 0:00:30.5]} 24... Rf7 {[%clk 0:00:05.8]} 25. Qh3
{[%clk 0:00:26.5]} 25... Qe2 {[%clk 0:00:04.3]} 26. Raf1 {[%clk 0:00:21.4]}
26... Raf8 {[%clk 0:00:03.1]} 27. Rg2 {[%clk 0:00:19.8]} 1-0